Workbook

Sheet Sheet1
A1: Linear regression algebra | F1: model:
A2: Hit [F9] to generate new data set for analysis. | F2: my = a1 + a2 x + a3 x2
B4: x | C4: y | D4: sy | E4: yfit = [Jya] a | F4: y - yfit | G4: [Jya]ij = dyifit/daj | K4: [s2y]
B5: 1 | C5: =MMULT(G5:I9,B11:B13)+NORMINV(RAND(),0,D5) -> 1.840711154 | D5: 0.2 | E5: =MMULT(G5:I9,C11:C13) -> 1.839699364 | F5: =C5-E5 -> 0.001011789939 | G5: 1 | H5: =B5 -> 1 | I5: =B5^2 -> 1 | K5: =_xlfn.MUNIT(5)*D5:D9^2 -> 0.04 | L5: 0 | M5: 0 | N5: 0 | O5: 0
B6: 2 | C6: 2.14935151 | D6: 0.2 | E6: 2.151472045 | F6: =C6-E6 -> -0.002120535215 | G6: 1 | H6: =B6 -> 2 | I6: =B6^2 -> 4 | K6: 0 | L6: 0.04 | M6: 0 | N6: 0 | O6: 0
B7: 3 | C7: 2.154129355 | D7: 0.2 | E7: 2.153838489 | F7: =C7-E7 -> 0.0002908660129 | G7: 1 | H7: =B7 -> 3 | I7: =B7^2 -> 9 | K7: 0 | L7: 0 | M7: 0.04 | N7: 0 | O7: 0
B8: 4 | C8: 1.848531411 | D8: 0.2 | E8: 1.846798697 | F8: =C8-E8 -> 0.001732713865 | G8: 1 | H8: =B8 -> 4 | I8: =B8^2 -> 16 | K8: 0 | L8: 0 | M8: 0 | N8: 0.04 | O8: 0
B9: 5 | C9: 1.229437834 | D9: 0.2 | E9: 1.230352669 | F9: =C9-E9 -> -0.0009148346011 | G9: 1 | H9: =B9 -> 5 | I9: =B9^2 -> 25 | K9: 0 | L9: 0 | M9: 0 | N9: 0 | O9: 0.04
B10: a | C10: a = [Jay] †y | D10: sa | E10: [s2a] = [X]-1 | H10: Correlation matrix | K10: [s2y]-1
B11: 1 | C11: =MMULT(B16:F18,C5:C9) -> 1.218520447 | D11: =SQRT(MMULT(_xlfn.MUNIT(ROWS(E11:G13))*E11:G13,ROW(E11:G13)^0)) -> 0.4289522118 | E11: =MINVERSE(K17:M19) -> 0.184 | F11: -0.132 | G11: 0.02 | H11: =E11:G13/TRANSPOSE(D11:D13)/D11:D13 -> 1 | I11: -0.9413762576 | J11: 0.872278376 | K11: =_xlfn.MUNIT(5)*1/D5:D9^2 -> 25 | L11: 0 | M11: 0 | N11: 0 | O11: 0
B12: 1 | C12: 0.775882035 | D12: 0.3268901082 | E12: -0.132 | F12: 0.1068571429 | G12: -0.01714285714 | H12: -0.9413762576 | I12: 1 | J12: -0.9811049103 | K12: 0 | L12: 25 | M12: 0 | N12: 0 | O12: 0
B13: -0.2 | C13: -0.1547031181 | D13: 0.05345224838 | E13: 0.02 | F13: -0.01714285714 | G13: 0.002857142857 | H13: 0.872278376 | I13: -0.9811049103 | J13: 1 | K13: 0 | L13: 0 | M13: 25 | N13: 0 | O13: 0
K14: 0 | L14: 0 | M14: 0 | N14: 25 | O14: 0
B15: [Jay] †= [X] -1[Jya]T [s2y]-1 | H15: c2 | I15: c2n | K15: 0 | L15: 0 | M15: 0 | N15: 0 | O15: 25
B16: =MMULT(E11:G13,MMULT(TRANSPOSE(G5:I9),K11:O15)) -> 1.8 | C16: -1.376676551e-14 | D16: -0.8 | E16: -0.6 | F16: 0.6 | H16: =MMULT(TRANSPOSE(F5:F9),MMULT(K11:O15,F5:F9)) -> 0.00023610528 | I16: =H16/2 -> 0.00011805264 | K16: [X] = [Jya] T[s2y]-1 [Jya]
B17: -1.057142857 | C17: 0.3285714286 | D17: 0.8571428571 | E17: 0.5285714286 | F17: -0.6571428571 | K17: =MMULT(TRANSPOSE(G5:I9),MMULT(K11:O15,G5:I9)) -> 125 | L17: 375 | M17: 1375
B18: 0.1428571429 | C18: -0.07142857143 | D18: -0.1428571429 | E18: -0.07142857143 | F18: 0.1428571429 | K18: 375 | L18: 1375 | M18: 5625
K19: 1375 | L19: 5625 | M19: 24475
B20: Calculation of yfit and its uncertainty from x = 0 to 6 in steps of 0.5
B21: x | C21: yfit | D21: [Jya] | G21: syfit | H21: yfit ± syfit | K21: Excel's regr. results
B22: 0 | C22: =MMULT(D22:F34,C11:C13) -> 1.218520447 | D22: 1 | E22: =B22 -> 0 | F22: =B22^2 -> 0 | G22: =SQRT(MMULT(_xlfn.MUNIT(13)*B37:N49,ROW(1:13)^0)) -> 0.4289522118 | H22: =C22-G22 -> 0.7895682357 | I22: =C22+G22 -> 1.647472659 | J22: a | K22: =LINEST(C5:C9,G5:I9,FALSE,TRUE) -> -0.1547031181 | L22: 0.775882035 | M22: 1.218520447
B23: 0.5 | C23: 1.567785685 | D23: 1 | E23: 0.5 | F23: 0.25 | G23: 0.29087307 | H23: 1.276912615 | I23: 1.858658755 | J23: sa | K23: 0.0005807695388 | L23: 0.003551727441 | M23: 0.004660652933
B24: 1 | C24: 1.839699364 | D24: 1 | E24: 1 | F24: 1 | G24: 0.1882247896 | H24: 1.651474575 | I24: 2.027924154 | J24: sa/cn | K24: =K23/SQRT($I$16) -> 0.05345224838 | L24: =L23/SQRT($I$16) -> 0.3268901082 | M24: =M23/SQRT($I$16) -> 0.4289522118
B25: 1.5 | C25: 2.034261484 | D25: 1 | E25: 1.5 | F25: 2.25 | G25: 0.1310670494 | H25: 1.903194435 | I25: 2.165328534
B26: 2 | C26: 2.151472045 | D26: 1 | E26: 2 | F26: 4 | G26: 0.12188988 | H26: 2.029582165 | I26: 2.273361925
B27: 2.5 | C27: 2.191331047 | D27: 1 | E27: 2.5 | F27: 6.25 | G27: 0.1332291259 | H27: 2.058101921 | I27: 2.324560173
B28: 3 | C28: 2.153838489 | D28: 1 | E28: 3 | F28: 9 | G28: 0.1393864105 | H28: 2.014452079 | I28: 2.2932249
B29: 3.5 | C29: 2.038994373 | D29: 1 | E29: 3.5 | F29: 12.25 | G29: 0.1332291259 | H29: 1.905765247 | I29: 2.172223499
B30: 4 | C30: 1.846798697 | D30: 1 | E30: 4 | F30: 16 | G30: 0.12188988 | H30: 1.724908817 | I30: 1.968688577
B31: 4.5 | C31: 1.577251462 | D31: 1 | E31: 4.5 | F31: 20.25 | G31: 0.1310670494 | H31: 1.446184413 | I31: 1.708318512
B32: 5 | C32: 1.230352669 | D32: 1 | E32: 5 | F32: 25 | G32: 0.1882247896 | H32: 1.042127879 | I32: 1.418577458
B33: 5.5 | C33: 0.806102316 | D33: 1 | E33: 5.5 | F33: 30.25 | G33: 0.29087307 | H33: 0.515229246 | I33: 1.096975386
B34: 6 | C34: 0.3045004042 | D34: 1 | E34: 6 | F34: 36 | G34: 0.4289522118 | H34: -0.1244518076 | I34: 0.7334526159
B36: [s2y] = [Jya]T [s2a][Jya]
B37: =MMULT(D22:F34,MMULT($E$11:$G$13,TRANSPOSE(D22:F34))) -> 0.184 | C37: 0.123 | D37: 0.072 | E37: 0.031 | F37: -5.273559367e-16 | G37: -0.021 | H37: -0.032 | I37: -0.033 | J37: -0.024 | K37: -0.005 | L37: 0.024 | M37: 0.063 | N37: 0.112
B38: 0.123 | C38: 0.08460714286 | D38: 0.05228571429 | E38: 0.02603571429 | F38: 0.005857142857 | G38: -0.00825 | H38: -0.01628571429 | I38: -0.01825 | J38: -0.01414285714 | K38: -0.003964285714 | L38: 0.01228571429 | M38: 0.03460714286 | N38: 0.063
B39: 0.072 | C39: 0.05228571429 | D39: 0.03542857143 | E39: 0.02142857143 | F39: 0.01028571429 | G39: 0.002 | H39: -0.003428571429 | I39: -0.006 | J39: -0.005714285714 | K39: -0.002571428571 | L39: 0.003428571429 | M39: 0.01228571429 | N39: 0.024
B40: 0.031 | C40: 0.02603571429 | D40: 0.02142857143 | E40: 0.01717857143 | F40: 0.01328571429 | G40: 0.00975 | H40: 0.006571428571 | I40: 0.00375 | J40: 0.001285714286 | K40: -0.0008214285714 | L40: -0.002571428571 | M40: -0.003964285714 | N40: -0.005
B41: -3.191891196e-16 | C41: 0.005857142857 | D41: 0.01028571429 | E41: 0.01328571429 | F41: 0.01485714286 | G41: 0.015 | H41: 0.01371428571 | I41: 0.011 | J41: 0.006857142857 | K41: 0.001285714286 | L41: -0.005714285714 | M41: -0.01414285714 | N41: -0.024
B42: -0.021 | C42: -0.00825 | D42: 0.002 | E42: 0.00975 | F42: 0.015 | G42: 0.01775 | H42: 0.018 | I42: 0.01575 | J42: 0.011 | K42: 0.00375 | L42: -0.006 | M42: -0.01825 | N42: -0.033
B43: -0.032 | C43: -0.01628571429 | D43: -0.003428571429 | E43: 0.006571428571 | F43: 0.01371428571 | G43: 0.018 | H43: 0.01942857143 | I43: 0.018 | J43: 0.01371428571 | K43: 0.006571428571 | L43: -0.003428571429 | M43: -0.01628571429 | N43: -0.032
B44: -0.033 | C44: -0.01825 | D44: -0.006 | E44: 0.00375 | F44: 0.011 | G44: 0.01575 | H44: 0.018 | I44: 0.01775 | J44: 0.015 | K44: 0.00975 | L44: 0.002 | M44: -0.00825 | N44: -0.021
B45: -0.024 | C45: -0.01414285714 | D45: -0.005714285714 | E45: 0.001285714286 | F45: 0.006857142857 | G45: 0.011 | H45: 0.01371428571 | I45: 0.015 | J45: 0.01485714286 | K45: 0.01328571429 | L45: 0.01028571429 | M45: 0.005857142857 | N45: -5.551115123e-16
B46: -0.005 | C46: -0.003964285714 | D46: -0.002571428571 | E46: -0.0008214285714 | F46: 0.001285714286 | G46: 0.00375 | H46: 0.006571428571 | I46: 0.00975 | J46: 0.01328571429 | K46: 0.01717857143 | L46: 0.02142857143 | M46: 0.02603571429 | N46: 0.031
B47: 0.024 | C47: 0.01228571429 | D47: 0.003428571429 | E47: -0.002571428571 | F47: -0.005714285714 | G47: -0.006 | H47: -0.003428571429 | I47: 0.002 | J47: 0.01028571429 | K47: 0.02142857143 | L47: 0.03542857143 | M47: 0.05228571429 | N47: 0.072
B48: 0.063 | C48: 0.03460714286 | D48: 0.01228571429 | E48: -0.003964285714 | F48: -0.01414285714 | G48: -0.01825 | H48: -0.01628571429 | I48: -0.00825 | J48: 0.005857142857 | K48: 0.02603571429 | L48: 0.05228571429 | M48: 0.08460714286 | N48: 0.123
B49: 0.112 | C49: 0.063 | D49: 0.024 | E49: -0.005 | F49: -0.024 | G49: -0.033 | H49: -0.032 | I49: -0.021 | J49: -1.110223025e-16 | K49: 0.031 | L49: 0.072 | M49: 0.123 | N49: 0.184
